[Event "Titled Tuesday Blitz June 20 Early 2023"]
[White "Kucuksari, Kaan"]
[Black "FREDERICKtheMATE"]
[WhiteFideId "6380166"]
[WhiteElo "2364"]
[BlackElo "2396"]
[Result "1-0"]
[Round "2"]
[TimeControl "180+2"]
[Date "2023.06.20"]
[WhiteClock "0:00:03"]
[BlackClock "0:01:16"]
[Board "97"]

1. e4 {[%clk 0:03:00]}  c5 {[%clk 0:03:00]} 2. Nf3 {[%clk 0:02:59]}  Nc6 {[%clk 0:03:01]} 3. Nc3 {[%clk 0:02:54]}  g6 {[%clk 0:02:59]} 4. d4 {[%clk 0:02:51]}  cxd4 {[%clk 0:02:57]} 5. Nxd4 {[%clk 0:02:52]}  Bg7 {[%clk 0:02:57]} 6. Nb3 {[%clk 0:02:52]}  Nf6 {[%clk 0:02:57]} 7. Be2 {[%clk 0:02:52]}  O-O {[%clk 0:02:57]} 8. O-O {[%clk 0:02:52]}  d6 {[%clk 0:02:57]} 9. Be3 {[%clk 0:02:49]}  Be6 {[%clk 0:02:57]} 10. Qd2 {[%clk 0:02:41]}  a6 {[%clk 0:02:57]} 11. Rfd1 {[%clk 0:02:40]}  b5 {[%clk 0:02:56]} 12. Nd4 {[%clk 0:02:32]}  Nxd4 {[%clk 0:02:55]} 13. Bxd4 {[%clk 0:02:32]}  b4 {[%clk 0:02:53]} 14. Nd5 {[%clk 0:02:32]}  Nxe4 {[%clk 0:02:51]} 15. Qxb4 {[%clk 0:02:27]}  Bxd5 {[%clk 0:02:43]} 16. Bxg7 {[%clk 0:02:26]}  Kxg7 {[%clk 0:02:43]} 17. Rxd5 {[%clk 0:02:25]}  Nf6 {[%clk 0:02:43]} 18. Rdd1 {[%clk 0:02:20]}  Qc7 {[%clk 0:02:40]} 19. c4 {[%clk 0:02:13]}  Rab8 {[%clk 0:02:40]} 20. Qc3 {[%clk 0:02:13]}  Qb6 {[%clk 0:02:38]} 21. b3 {[%clk 0:02:11]}  Rfc8 {[%clk 0:02:39]} 22. Bf3 {[%clk 0:02:04]}  a5 {[%clk 0:02:35]} 23. Re1 {[%clk 0:01:58]}  Rc7 {[%clk 0:02:34]} 24. Re3 {[%clk 0:01:54]}  Qb4 {[%clk 0:02:33]} 25. Qd4 {[%clk 0:01:20]}  e5 {[%clk 0:02:29]} 26. Qd1 {[%clk 0:01:10]}  a4 {[%clk 0:02:26]} 27. bxa4 {[%clk 0:00:43]}  Qxc4 {[%clk 0:02:25]} 28. Qxd6 {[%clk 0:00:41]}  e4 {[%clk 0:02:11]} 29. Bxe4 {[%clk 0:00:20]}  Nxe4 {[%clk 0:02:10]} 30. Qe5+ {[%clk 0:00:11]}  Nf6 {[%clk 0:02:10]} 31. h3 {[%clk 0:00:09]}  Re8 {[%clk 0:02:06]} 32. Qg3 {[%clk 0:00:08]}  Rxe3 {[%clk 0:02:04]} 33. Qxe3 {[%clk 0:00:09]}  Qxa4 {[%clk 0:02:03]} 34. Qe5 {[%clk 0:00:07]}  Qe4 {[%clk 0:02:00]} 35. Qxc7 {[%clk 0:00:07]}  Qd4 {[%clk 0:01:59]} 36. Qc1 {[%clk 0:00:06]}  Ne4 {[%clk 0:01:59]} 37. Qe1 {[%clk 0:00:03]}  Nxf2 {[%clk 0:01:59]} 38. Kh2 {[%clk 0:00:02]}  Qf4+ {[%clk 0:01:57]} 39. g3 {[%clk 0:00:03]}  Qd4 {[%clk 0:01:51]} 40. Rc1 {[%clk 0:00:02]}  Ne4 {[%clk 0:01:48]} 41. Rc2 {[%clk 0:00:02]}  Qd3 {[%clk 0:01:47]} 42. Qe2 {[%clk 0:00:02]}  Qxg3+ {[%clk 0:01:46]} 43. Kh1 {[%clk 0:00:03]}  Qxh3+ {[%clk 0:01:40]} 44. Kg1 {[%clk 0:00:04]}  Ng3 {[%clk 0:01:27]} 45. Qe5+ {[%clk 0:00:03]}  Kh6 {[%clk 0:01:16]} 46. Rh2 {[%clk 0:00:03]} 1-0


[Site "https://www.chess.com"]

[Event "Titled Tuesday Blitz June 20 Early 2023"]
[White "Goryachkina, Aleksandra"]
[Black "Goldin, Roman"]
[WhiteFideId "4147103"]
[BlackFideId "2803860"]
[WhiteElo "2471"]
[BlackElo "2312"]
[Result "1-0"]
[Round "2"]
[TimeControl "180+2"]
[Date "2023.06.20"]
[WhiteClock "0:00:13"]
[BlackClock "0:00:00"]
[Board "98"]

1. e4 {[%clk 0:02:59]}  Nc6 {[%clk 0:02:58]} 2. Nc3 {[%clk 0:02:56]}  e5 {[%clk 0:02:57]} 3. Nf3 {[%clk 0:02:56]}  g6 {[%clk 0:02:56]} 4. d4 {[%clk 0:02:48]}  exd4 {[%clk 0:02:56]} 5. Nxd4 {[%clk 0:02:49]}  Bg7 {[%clk 0:02:56]} 6. Be3 {[%clk 0:02:48]}  Nf6 {[%clk 0:02:55]} 7. Nxc6 {[%clk 0:02:22]}  bxc6 {[%clk 0:02:55]} 8. Bc4 {[%clk 0:02:21]}  O-O {[%clk 0:02:44]} 9. O-O {[%clk 0:02:21]}  Re8 {[%clk 0:02:44]} 10. Bb3 {[%clk 0:02:13]}  Nxe4 {[%clk 0:02:01]} 11. Nxe4 {[%clk 0:02:08]}  Rxe4 {[%clk 0:02:00]} 12. Bxf7+ {[%clk 0:02:07]}  Kh8 {[%clk 0:01:53]} 13. Bb3 {[%clk 0:02:05]}  d5 {[%clk 0:01:47]} 14. Re1 {[%clk 0:01:54]}  Bf5 {[%clk 0:01:33]} 15. c3 {[%clk 0:01:52]}  Re8 {[%clk 0:01:23]} 16. Qd2 {[%clk 0:01:51]}  a5 {[%clk 0:01:12]} 17. Ba4 {[%clk 0:01:46]}  Qd7 {[%clk 0:01:10]} 18. Bd4 {[%clk 0:01:38]}  Rxe1+ {[%clk 0:01:01]} 19. Rxe1 {[%clk 0:01:39]}  Re8 {[%clk 0:00:58]} 20. Bxg7+ {[%clk 0:01:22]}  Kxg7 {[%clk 0:00:57]} 21. h3 {[%clk 0:01:14]}  Re6 {[%clk 0:00:53]} 22. Qd4+ {[%clk 0:01:09]}  Kg8 {[%clk 0:00:48]} 23. Rxe6 {[%clk 0:00:57]}  Qxe6 {[%clk 0:00:48]} 24. b4 {[%clk 0:00:48]}  axb4 {[%clk 0:00:40]} 25. cxb4 {[%clk 0:00:48]}  Qe1+ {[%clk 0:00:28]} 26. Kh2 {[%clk 0:00:48]}  Qe6 {[%clk 0:00:19]} 27. a3 {[%clk 0:00:45]}  h5 {[%clk 0:00:16]} 28. Qf4 {[%clk 0:00:39]}  Qd7 {[%clk 0:00:06]} 29. Bb3 {[%clk 0:00:33]}  Kg7 {[%clk 0:00:06]} 30. Qd4+ {[%clk 0:00:18]}  Kf7 {[%clk 0:00:05]} 31. a4 {[%clk 0:00:18]}  Qd6+ {[%clk 0:00:05]} 32. Kg1 {[%clk 0:00:19]}  Qe6 {[%clk 0:00:02]} 33. a5 {[%clk 0:00:18]}  Qe1+ {[%clk 0:00:02]} 34. Kh2 {[%clk 0:00:19]}  Be4 {[%clk 0:00:00]} 35. f3 {[%clk 0:00:13]} 1-0


[Site "https://www.chess.com"]

[Event "Titled Tuesday Blitz June 20 Early 2023"]
[White "i_like_explosions"]
[Black "Vaibhav Jayant Raut"]
[BlackFideId "5089034"]
[WhiteElo "2395"]
[BlackElo "2156"]
[Result "1/2-1/2"]
[Round "2"]
[TimeControl "180+2"]
[Date "2023.06.20"]
[WhiteClock "0:00:19"]
[BlackClock "0:00:05"]
[Board "99"]

1. d4 {[%clk 0:03:00]}  Nf6 {[%clk 0:02:59]} 2. Bg5 {[%clk 0:03:01]}  e6 {[%clk 0:02:56]} 3. e4 {[%clk 0:03:00]}  h6 {[%clk 0:02:56]} 4. Bxf6 {[%clk 0:03:01]}  Qxf6 {[%clk 0:02:57]} 5. Nc3 {[%clk 0:03:01]}  d6 {[%clk 0:02:54]} 6. Qd2 {[%clk 0:03:01]}  c6 {[%clk 0:02:47]} 7. O-O-O {[%clk 0:03:00]}  e5 {[%clk 0:02:47]} 8. Nf3 {[%clk 0:02:57]}  Nd7 {[%clk 0:02:47]} 9. Bc4 {[%clk 0:02:55]}  Be7 {[%clk 0:02:43]} 10. dxe5 {[%clk 0:02:52]}  Nxe5 {[%clk 0:02:39]} 11. Nxe5 {[%clk 0:02:49]}  dxe5 {[%clk 0:02:39]} 12. Kb1 {[%clk 0:02:38]}  O-O {[%clk 0:02:37]} 13. f3 {[%clk 0:02:38]}  b5 {[%clk 0:02:25]} 14. Bb3 {[%clk 0:02:37]}  a5 {[%clk 0:02:10]} 15. a4 {[%clk 0:02:28]}  Bb4 {[%clk 0:02:10]} 16. Qd3 {[%clk 0:02:21]}  Rb8 {[%clk 0:01:57]} 17. axb5 {[%clk 0:02:16]}  Bxc3 {[%clk 0:01:47]} 18. Qxc3 {[%clk 0:02:16]}  Rxb5 {[%clk 0:01:48]} 19. Rd2 {[%clk 0:02:06]}  Rb4 {[%clk 0:00:57]} 20. Rhd1 {[%clk 0:02:05]}  Bb7 {[%clk 0:00:50]} 21. Qc5 {[%clk 0:02:01]}  Rb5 {[%clk 0:00:43]} 22. Qxf8+ {[%clk 0:01:28]}  Kxf8 {[%clk 0:00:44]} 23. Rd8+ {[%clk 0:01:28]}  Qxd8 {[%clk 0:00:39]} 24. Rxd8+ {[%clk 0:01:29]}  Ke7 {[%clk 0:00:40]} 25. Rg8 {[%clk 0:01:29]}  g6 {[%clk 0:00:37]} 26. Rg7 {[%clk 0:01:30]}  Rxb3 {[%clk 0:00:23]} 27. cxb3 {[%clk 0:01:18]}  Kf8 {[%clk 0:00:19]} 28. Rh7 {[%clk 0:01:18]}  h5 {[%clk 0:00:19]} 29. Rh8+ {[%clk 0:01:19]}  Ke7 {[%clk 0:00:15]} 30. Rb8 {[%clk 0:01:20]}  Ba6 {[%clk 0:00:15]} 31. g3 {[%clk 0:01:16]}  Be2 {[%clk 0:00:15]} 32. f4 {[%clk 0:01:10]}  Bd3+ {[%clk 0:00:14]} 33. Kc1 {[%clk 0:01:10]}  Bxe4 {[%clk 0:00:15]} 34. fxe5 {[%clk 0:01:10]}  Bd5 {[%clk 0:00:15]} 35. b4 {[%clk 0:01:09]}  axb4 {[%clk 0:00:15]} 36. Rxb4 {[%clk 0:01:09]}  Ke6 {[%clk 0:00:16]} 37. Rf4 {[%clk 0:01:09]}  Kxe5 {[%clk 0:00:16]} 38. Kd2 {[%clk 0:01:08]}  f5 {[%clk 0:00:14]} 39. h4 {[%clk 0:01:07]}  Kf6 {[%clk 0:00:13]} 40. Ke3 {[%clk 0:01:07]}  g5 {[%clk 0:00:14]} 41. hxg5+ {[%clk 0:01:06]}  Kxg5 {[%clk 0:00:15]} 42. Rb4 {[%clk 0:01:06]}  Bg2 {[%clk 0:00:14]} 43. Rc4 {[%clk 0:01:02]}  Be4 {[%clk 0:00:14]} 44. b4 {[%clk 0:01:02]}  Kg4 {[%clk 0:00:13]} 45. Kf2 {[%clk 0:01:02]}  h4 {[%clk 0:00:09]} 46. gxh4 {[%clk 0:01:01]}  Kxh4 {[%clk 0:00:10]} 47. Rc3 {[%clk 0:00:51]}  Kg4 {[%clk 0:00:09]} 48. Rg3+ {[%clk 0:00:51]}  Kf4 {[%clk 0:00:10]} 49. Rg8 {[%clk 0:00:51]}  Ke5 {[%clk 0:00:10]} 50. Rd8 {[%clk 0:00:51]}  Bd5 {[%clk 0:00:08]} 51. Re8+ {[%clk 0:00:47]}  Kd4 {[%clk 0:00:09]} 52. Kg3 {[%clk 0:00:47]}  Kc4 {[%clk 0:00:07]} 53. Rb8 {[%clk 0:00:47]}  Be4 {[%clk 0:00:04]} 54. Kf4 {[%clk 0:00:47]}  Kd4 {[%clk 0:00:04]} 55. Rb6 {[%clk 0:00:46]}  Kc4 {[%clk 0:00:03]} 56. Ke5 {[%clk 0:00:43]}  Kd3 {[%clk 0:00:02]} 57. Kf4 {[%clk 0:00:42]}  Kd4 {[%clk 0:00:03]} 58. Rb8 {[%clk 0:00:41]}  Kd5 {[%clk 0:00:03]} 59. Rb6 {[%clk 0:00:29]}  Kc4 {[%clk 0:00:03]} 60. Ke3 {[%clk 0:00:24]}  Kd5 {[%clk 0:00:03]} 61. Rb8 {[%clk 0:00:21]}  Ke5 {[%clk 0:00:04]} 62. Re8+ {[%clk 0:00:20]}  Kd6 {[%clk 0:00:03]} 63. Kf4 {[%clk 0:00:17]}  Kc7 {[%clk 0:00:02]} 64. Rxe4 {[%clk 0:00:16]}  fxe4 {[%clk 0:00:02]} 65. Kxe4 {[%clk 0:00:17]}  Kb6 {[%clk 0:00:03]} 66. Kd4 {[%clk 0:00:18]}  Kb5 {[%clk 0:00:04]} 67. Kc3 {[%clk 0:00:18]}  c5 {[%clk 0:00:04]} 68. bxc5 {[%clk 0:00:19]}  Kxc5 {[%clk 0:00:05]} 1/2-1/2


[Site "https://www.chess.com"]

[Event "Titled Tuesday Blitz June 20 Early 2023"]
[White "Nagare Kaivalya Sandip"]
[Black "Bogaudinov, Rushan"]
[WhiteFideId "25957929"]
[BlackFideId "4129288"]
[WhiteElo "2024"]
[BlackElo "1967"]
[Result "1-0"]
[Round "2"]
[TimeControl "180+2"]
[Date "2023.06.20"]
[WhiteClock "0:01:29"]
[BlackClock "0:00:00"]
[Board "101"]

1. e4 {[%clk 0:03:00]}  c5 {[%clk 0:02:57]} 2. Nf3 {[%clk 0:03:01]}  e6 {[%clk 0:02:56]} 3. d4 {[%clk 0:03:01]}  cxd4 {[%clk 0:02:57]} 4. Nxd4 {[%clk 0:03:02]}  a6 {[%clk 0:02:58]} 5. Bd3 {[%clk 0:03:02]}  Qc7 {[%clk 0:02:57]} 6. O-O {[%clk 0:03:03]}  Nf6 {[%clk 0:02:55]} 7. Qe2 {[%clk 0:03:03]}  Nc6 {[%clk 0:02:49]} 8. Nxc6 {[%clk 0:03:02]}  Qxc6 {[%clk 0:02:43]} 9. c4 {[%clk 0:03:02]}  d6 {[%clk 0:02:34]} 10. Nc3 {[%clk 0:03:01]}  Be7 {[%clk 0:02:34]} 11. Bg5 {[%clk 0:03:01]}  Qc7 {[%clk 0:02:22]} 12. f4 {[%clk 0:03:01]}  Bd7 {[%clk 0:02:09]} 13. e5 {[%clk 0:02:58]}  Ng8 {[%clk 0:02:09]} 14. exd6 {[%clk 0:02:50]}  Bxd6 {[%clk 0:02:02]} 15. Ne4 {[%clk 0:02:50]}  Ne7 {[%clk 0:01:57]} 16. Rad1 {[%clk 0:02:49]}  Bc5+ {[%clk 0:01:54]} 17. Kh1 {[%clk 0:02:46]}  h6 {[%clk 0:01:49]} 18. Bh4 {[%clk 0:02:44]}  Nf5 {[%clk 0:01:50]} 19. Nxc5 {[%clk 0:02:41]}  Qxc5 {[%clk 0:01:45]} 20. Bf2 {[%clk 0:02:40]}  Qe7 {[%clk 0:01:40]} 21. Rfe1 {[%clk 0:02:36]}  g6 {[%clk 0:01:15]} 22. g4 {[%clk 0:02:36]}  Bc6+ {[%clk 0:01:05]} 23. Be4 {[%clk 0:02:36]}  Nh4 {[%clk 0:00:44]} 24. Bxc6+ {[%clk 0:02:29]}  bxc6 {[%clk 0:00:45]} 25. Qe5 {[%clk 0:02:14]}  O-O {[%clk 0:00:43]} 26. Bc5 {[%clk 0:02:12]}  Qb7 {[%clk 0:00:35]} 27. Qf6 {[%clk 0:02:10]}  g5 {[%clk 0:00:28]} 28. fxg5 {[%clk 0:02:07]}  hxg5 {[%clk 0:00:29]} 29. Re5 {[%clk 0:01:59]}  Ng6 {[%clk 0:00:20]} 30. Rxg5 {[%clk 0:01:59]}  e5 {[%clk 0:00:17]} 31. Qxe5 {[%clk 0:01:38]}  Rfe8 {[%clk 0:00:16]} 32. Qf6 {[%clk 0:01:37]}  Qc7 {[%clk 0:00:10]} 33. Bd4 {[%clk 0:01:34]}  Kf8 {[%clk 0:00:08]} 34. Qg7+ {[%clk 0:01:30]}  Ke7 {[%clk 0:00:08]} 35. Bc5+ {[%clk 0:01:31]}  Ke6 {[%clk 0:00:07]} 36. Re1+ {[%clk 0:01:30]}  Ne5 {[%clk 0:00:07]} 37. Rgxe5+ {[%clk 0:01:30]}  Qxe5 {[%clk 0:00:00]} 38. Rxe5+ {[%clk 0:01:29]} 1-0


[Site "https://www.chess.com"]

[Event "Titled Tuesday Blitz June 20 Early 2023"]
[White "Bueno, Alfeu Junior Varela"]
[Black "Arabidze, Meri"]
[WhiteFideId "2108879"]
[BlackFideId "13604040"]
[WhiteElo "2175"]
[BlackElo "2405"]
[Result "0-1"]
[Round "2"]
[TimeControl "180+2"]
[Date "2023.06.20"]
[WhiteClock "0:00:04"]
[BlackClock "0:00:49"]
[Board "102"]

1. e4 {[%clk 0:02:55]}  c5 {[%clk 0:02:59]} 2. Nc3 {[%clk 0:02:54]}  e6 {[%clk 0:02:59]} 3. f4 {[%clk 0:02:53]}  a6 {[%clk 0:02:57]} 4. g3 {[%clk 0:02:53]}  Nc6 {[%clk 0:02:57]} 5. Bg2 {[%clk 0:02:53]}  b5 {[%clk 0:02:55]} 6. e5 {[%clk 0:02:35]}  Bb7 {[%clk 0:02:45]} 7. Ne4 {[%clk 0:02:34]}  Qc7 {[%clk 0:02:45]} 8. d3 {[%clk 0:02:22]}  Be7 {[%clk 0:02:44]} 9. Be3 {[%clk 0:02:19]}  Nd4 {[%clk 0:02:28]} 10. Nf3 {[%clk 0:01:47]}  Nxf3+ {[%clk 0:01:58]} 11. Qxf3 {[%clk 0:01:48]}  Bd5 {[%clk 0:01:54]} 12. c4 {[%clk 0:01:32]}  Bc6 {[%clk 0:01:47]} 13. Qe2 {[%clk 0:01:00]}  Rc8 {[%clk 0:01:31]} 14. O-O {[%clk 0:00:34]}  f5 {[%clk 0:01:31]} 15. exf6 {[%clk 0:00:25]}  Nxf6 {[%clk 0:01:30]} 16. Nxf6+ {[%clk 0:00:21]}  Bxf6 {[%clk 0:01:31]} 17. cxb5 {[%clk 0:00:16]}  axb5 {[%clk 0:01:23]} 18. Rac1 {[%clk 0:00:17]}  Bxg2 {[%clk 0:01:16]} 19. Qxg2 {[%clk 0:00:18]}  d6 {[%clk 0:01:17]} 20. Qe4 {[%clk 0:00:18]}  Qe7 {[%clk 0:01:09]} 21. b4 {[%clk 0:00:18]}  O-O {[%clk 0:01:06]} 22. Rfe1 {[%clk 0:00:16]}  d5 {[%clk 0:00:58]} 23. Qf3 {[%clk 0:00:15]}  cxb4 {[%clk 0:00:58]} 24. f5 {[%clk 0:00:11]}  Bc3 {[%clk 0:00:57]} 25. Re2 {[%clk 0:00:10]}  Rxf5 {[%clk 0:00:57]} 26. Qg4 {[%clk 0:00:09]}  Rcf8 {[%clk 0:00:57]} 27. Bd4 {[%clk 0:00:06]}  Bxd4+ {[%clk 0:00:52]} 28. Qxd4 {[%clk 0:00:07]}  Qf7 {[%clk 0:00:51]} 29. Rc6 {[%clk 0:00:04]}  Rf1+ {[%clk 0:00:50]} 30. Kg2 {[%clk 0:00:04]}  Qf3+ {[%clk 0:00:51]} 31. Kh3 {[%clk 0:00:05]}  Qxe2 {[%clk 0:00:51]} 32. Rc7 {[%clk 0:00:04]}  Qh5+ {[%clk 0:00:49]} 33. Qh4 {[%clk 0:00:03]}  Qxh4+ {[%clk 0:00:49]} 34. Kxh4 {[%clk 0:00:04]}  R1f7 {[%clk 0:00:49]} 0-1


[Site "https://www.chess.com"]

[Event "Titled Tuesday Blitz June 20 Early 2023"]
[White "Soham Kamotra"]
[Black "Kovacsy, Barnabas"]
[WhiteFideId "46647490"]
[BlackFideId "769290"]
[WhiteElo "2209"]
[BlackElo "2130"]
[Result "1-0"]
[Round "2"]
[TimeControl "180+2"]
[Date "2023.06.20"]
[WhiteClock "0:00:20"]
[BlackClock "0:00:19"]
[Board "103"]

1. d4 {[%clk 0:02:42]}  Nf6 {[%clk 0:02:59]} 2. Bg5 {[%clk 0:02:41]}  Ne4 {[%clk 0:02:56]} 3. h4 {[%clk 0:02:40]}  d5 {[%clk 0:02:54]} 4. e3 {[%clk 0:02:38]}  h6 {[%clk 0:02:49]} 5. Bf4 {[%clk 0:02:38]}  Bf5 {[%clk 0:02:45]} 6. Nd2 {[%clk 0:02:17]}  e6 {[%clk 0:02:45]} 7. Ngf3 {[%clk 0:02:13]}  Bd6 {[%clk 0:02:37]} 8. Ne5 {[%clk 0:02:06]}  Nd7 {[%clk 0:02:37]} 9. Ndf3 {[%clk 0:02:05]}  Ndf6 {[%clk 0:02:08]} 10. Be2 {[%clk 0:01:42]}  O-O {[%clk 0:02:01]} 11. O-O {[%clk 0:01:13]}  Ng4 {[%clk 0:01:46]} 12. c4 {[%clk 0:01:07]}  c6 {[%clk 0:01:33]} 13. Rc1 {[%clk 0:01:04]}  Nxe5 {[%clk 0:01:31]} 14. dxe5 {[%clk 0:01:04]}  Be7 {[%clk 0:01:28]} 15. Nd4 {[%clk 0:00:56]}  dxc4 {[%clk 0:01:20]} 16. f3 {[%clk 0:00:35]}  Nc5 {[%clk 0:01:07]} 17. Nxf5 {[%clk 0:00:34]}  exf5 {[%clk 0:01:06]} 18. Rxc4 {[%clk 0:00:35]}  Ne6 {[%clk 0:01:03]} 19. Qc2 {[%clk 0:00:28]}  Nxf4 {[%clk 0:00:49]} 20. Rxf4 {[%clk 0:00:28]}  Qb6 {[%clk 0:00:44]} 21. Qc3 {[%clk 0:00:12]}  g6 {[%clk 0:00:28]} 22. Kf2 {[%clk 0:00:11]}  Rad8 {[%clk 0:00:22]} 23. Bc4 {[%clk 0:00:11]}  Kh7 {[%clk 0:00:19]} 24. h5 {[%clk 0:00:09]}  Bg5 {[%clk 0:00:19]} 25. hxg6+ {[%clk 0:00:07]}  fxg6 {[%clk 0:00:19]} 26. Rd4 {[%clk 0:00:08]}  Rfe8 {[%clk 0:00:15]} 27. Rxd8 {[%clk 0:00:06]}  Rxd8 {[%clk 0:00:14]} 28. f4 {[%clk 0:00:07]}  Be7 {[%clk 0:00:13]} 29. Qc2 {[%clk 0:00:06]}  Bb4 {[%clk 0:00:12]} 30. Bd3 {[%clk 0:00:07]}  Bc5 {[%clk 0:00:12]} 31. Qe2 {[%clk 0:00:07]}  Rd5 {[%clk 0:00:08]} 32. Rd1 {[%clk 0:00:06]}  Qd8 {[%clk 0:00:08]} 33. g3 {[%clk 0:00:04]}  Kg7 {[%clk 0:00:08]} 34. b3 {[%clk 0:00:05]}  h5 {[%clk 0:00:07]} 35. Bc2 {[%clk 0:00:05]}  h4 {[%clk 0:00:07]} 36. Rxd5 {[%clk 0:00:04]}  cxd5 {[%clk 0:00:08]} 37. g4 {[%clk 0:00:03]}  Qd7 {[%clk 0:00:02]} 38. gxf5 {[%clk 0:00:03]}  gxf5 {[%clk 0:00:03]} 39. Qh5 {[%clk 0:00:04]}  Qf7 {[%clk 0:00:03]} 40. Qg5+ {[%clk 0:00:04]}  Qg6 {[%clk 0:00:04]} 41. Qxh4 {[%clk 0:00:04]}  Kf7 {[%clk 0:00:02]} 42. Qg3 {[%clk 0:00:02]}  Qxg3+ {[%clk 0:00:02]} 43. Kxg3 {[%clk 0:00:03]}  Bxe3 {[%clk 0:00:02]} 44. Bxf5 {[%clk 0:00:03]}  d4 {[%clk 0:00:03]} 45. Bd3 {[%clk 0:00:03]}  Ke6 {[%clk 0:00:04]} 46. Kf3 {[%clk 0:00:04]}  Bd2 {[%clk 0:00:04]} 47. Ke4 {[%clk 0:00:04]}  Be3 {[%clk 0:00:04]} 48. f5+ {[%clk 0:00:05]}  Ke7 {[%clk 0:00:05]} 49. Bc4 {[%clk 0:00:06]}  a6 {[%clk 0:00:05]} 50. f6+ {[%clk 0:00:06]}  Kf8 {[%clk 0:00:05]} 51. a4 {[%clk 0:00:05]}  Bf2 {[%clk 0:00:04]} 52. Kf5 {[%clk 0:00:05]}  b5 {[%clk 0:00:04]} 53. axb5 {[%clk 0:00:06]}  axb5 {[%clk 0:00:05]} 54. Bxb5 {[%clk 0:00:07]}  Bg3 {[%clk 0:00:04]} 55. Bc4 {[%clk 0:00:07]}  Bh2 {[%clk 0:00:04]} 56. e6 {[%clk 0:00:07]}  Bd6 {[%clk 0:00:04]} 57. e7+ {[%clk 0:00:07]}  Bxe7 {[%clk 0:00:03]} 58. fxe7+ {[%clk 0:00:08]}  Kxe7 {[%clk 0:00:04]} 59. Ke4 {[%clk 0:00:09]}  Kd6 {[%clk 0:00:05]} 60. Kxd4 {[%clk 0:00:10]}  Kc7 {[%clk 0:00:06]} 61. Kc3 {[%clk 0:00:11]}  Kb6 {[%clk 0:00:07]} 62. Kb4 {[%clk 0:00:11]}  Kc7 {[%clk 0:00:07]} 63. Bb5 {[%clk 0:00:12]}  Kb6 {[%clk 0:00:08]} 64. Ka4 {[%clk 0:00:13]}  Ka7 {[%clk 0:00:09]} 65. Ka5 {[%clk 0:00:14]}  Kb7 {[%clk 0:00:09]} 66. Ba6+ {[%clk 0:00:14]}  Ka7 {[%clk 0:00:10]} 67. Kb5 {[%clk 0:00:14]}  Kb8 {[%clk 0:00:11]} 68. Kb6 {[%clk 0:00:15]}  Ka8 {[%clk 0:00:11]} 69. Be2 {[%clk 0:00:16]}  Kb8 {[%clk 0:00:12]} 70. b4 {[%clk 0:00:16]}  Ka8 {[%clk 0:00:12]} 71. b5 {[%clk 0:00:17]}  Kb8 {[%clk 0:00:13]} 72. Ka6 {[%clk 0:00:18]}  Ka8 {[%clk 0:00:14]} 73. b6 {[%clk 0:00:18]}  Kb8 {[%clk 0:00:14]} 74. b7 {[%clk 0:00:19]}  Kc7 {[%clk 0:00:15]} 75. Ka7 {[%clk 0:00:19]}  Kd6 {[%clk 0:00:16]} 76. b8=Q+ {[%clk 0:00:20]}  Kc5 {[%clk 0:00:17]} 77. Qb3 {[%clk 0:00:20]}  Kd4 {[%clk 0:00:18]} 78. Qd3+ {[%clk 0:00:20]}  Kc5 {[%clk 0:00:18]} 79. Qe4 {[%clk 0:00:19]}  Kd6 {[%clk 0:00:19]} 80. Qf5 {[%clk 0:00:19]}  Kc7 {[%clk 0:00:19]} 81. Qe6 {[%clk 0:00:18]}  Kd8 {[%clk 0:00:18]} 82. Qf7 {[%clk 0:00:18]}  Kc8 {[%clk 0:00:19]} 83. Bg4+ {[%clk 0:00:19]}  Kd8 {[%clk 0:00:19]} 84. Qd7# {[%clk 0:00:20]} 1-0


[Site "https://www.chess.com"]